bitfinex-derivatives/quotes_BTCF0:USTF0_20240829
["timestamp","ask_amount","ask_price","bid_price","bid_amount"]
[1724949946768,0.3618,60408.0,60399.0,0.00024825]
[1724949946769,0.082752,60400.0,60399.0,0.00024825]
[1724949946956,0.082752,60400.0,60380.0,0.3608]
[1724949946957,0.082763,60392.0,60390.0,0.04906504]
[1724949947156,0.3608,60391.0,60389.0,0.04906504]
[1724949947556,0.3608,60391.0,60384.0,0.06558762]
[1724949947761,0.082786,60375.0,60374.0,0.04911329]
[1724949947962,0.082799,60366.0,60364.0,0.03297103]
[1724949948161,0.3598,60366.0,60358.0,0.06548439]
[1724949948466,0.3608,60360.0,60356.0,0.06548439]
[1724949948853,0.3608,60360.0,60353.0,0.3608]
[1724949948854,0.3598,60360.0,60353.0,0.3608]
[1724949949059,0.3598,60360.0,60358.0,0.082809]
[1724949949963,3.77132,60365.0,60364.0,0.082801]
[1724949950152,0.00024846,60371.0,60359.0,0.248142]
[1724949950153,0.3608,60366.0,60359.0,0.248142]
[1724949950469,0.3608,60366.0,60343.0,0.098208]
[1724949950470,1.0816,60360.0,60328.0,0.42713915]
[1724949950654,1.0816,60360.0,60328.0,0.00082524]
[1724949950655,0.7208,60343.0,60328.0,0.00082524]
[1724949950857,0.3608,60331.0,60328.0,0.00082524]
[1724949951164,0.00024846,60336.0,60328.0,0.00082524]
[1724949951566,3.77024846,60336.0,60328.0,0.00082524]
[1724949951770,3.77024846,60336.0,60332.0,0.3608]
[1724949952065,0.00024846,60336.0,60334.0,0.082842]
[1724949952268,0.00024846,60336.0,60333.0,0.082844]
[1724949952669,0.00024846,60336.0,60335.0,0.082841]
[1724949952860,0.001,60343.0,60342.0,0.082832]
[1724949953257,0.3608,60352.0,60343.0,0.49716]
[1724949953458,0.3608,60352.0,60342.0,0.3608]
[1724949953868,0.3608,60352.0,60349.0,0.082821]
[1724949954556,0.3618,60352.0,60349.0,0.082821]
[1724949954757,0.3618,60352.0,60351.0,0.082819]
[1724949954961,0.3608,60352.0,60351.0,0.082819]
[1724949955269,0.3618,60352.0,60351.0,0.082819]
[1724949955469,0.001,60352.0,60351.0,0.082819]
[1724949955666,0.00024846,60353.0,60351.0,0.579899]
[1724949955863,0.00024846,60353.0,60351.0,0.082819]
[1724949957066,0.3509,60362.0,60352.0,0.49708]
[1724949957271,0.3608,60373.0,60369.0,0.082794]
[1724949957464,0.36,60378.0,60369.0,0.082794]
[1724949957465,0.36,60378.0,60370.0,0.3608]
[1724949957663,4.13,60378.0,60370.0,0.082793]
[1724949957861,0.3608,60380.0,60372.0,0.08279]
[1724949958270,0.3608,60380.0,60375.0,0.082786]
[1724949958859,0.14928,60381.0,60375.0,0.082786]
[1724949959061,0.14844,60381.0,60375.0,0.082786]
[1724949959261,0.14844,60381.0,60374.0,0.082787]
[1724949960166,0.003,60380.0,60374.0,0.082787]
[1724949960767,0.15144,60381.0,60376.0,0.082785]
[1724949961264,0.15144,60381.0,60370.0,0.36104846]
[1724949961457,0.001,60380.0,60377.0,0.082783]
[1724949961675,0.001,60380.0,60378.0,0.082781]
[1724949962062,0.14844,60381.0,60380.0,0.082779]
[1724949962063,0.14944,60381.0,60380.0,0.082779]
[1724949962463,0.14944,60381.0,60380.0,0.443579]
[1724949962871,0.09146372,60381.0,60380.0,0.443579]
[1724949963768,0.09046372,60381.0,60380.0,0.443579]
[1724949963969,0.09046372,60381.0,60380.0,0.804379]
[1724949964177,0.16556,60393.0,60392.0,0.082763]
[1724949964475,0.16556,60393.0,60392.0,0.443563]
[1724949964676,0.16556,60393.0,60392.0,0.082763]
[1724949965063,0.05669711,60393.0,60392.0,1.622286]
[1724949965258,0.3608,60422.0,60393.0,0.082761]
[1724949965458,0.3608,60422.0,60386.0,0.00024846]
[1724949965459,0.7208,60397.0,60394.0,0.065483]
[1724949965674,0.0531,60396.0,60371.0,0.06550131]
[1724949965875,0.082797,60367.0,60366.0,0.06550131]
[1724949966169,0.082797,60367.0,60345.0,0.0526]
[1724949966170,0.082806,60361.0,60360.0,0.00024846]
[1724949966369,0.443606,60361.0,60360.0,0.00024846]
[1724949966575,0.3608,60361.0,60360.0,0.00024846]
[1724949967165,0.3568,60367.0,60360.0,0.00024846]
[1724949967864,3.77,60366.0,60360.0,0.00024846]
[1724949968186,0.3608,60361.0,60344.0,0.06550131]
[1724949968478,0.3608,60346.0,60338.0,0.06550131]
[1724949968785,0.3608,60346.0,60340.0,0.082833]
[1724949968960,0.3608,60346.0,60333.0,0.42630131]
[1724949968961,0.3608,60346.0,60334.0,0.11500131]
[1724949969168,0.435627,60346.0,60338.0,0.080836]
[1724949969366,0.39418611,60346.0,60338.0,0.080836]
[1724949969569,0.39418611,60346.0,60336.0,0.08308746]
[1724949969776,0.39418611,60346.0,60339.0,0.3608]
[1724949969777,0.31135911,60346.0,60339.0,0.3608]
[1724949969967,0.082828,60345.0,60336.0,0.00024846]
[1724949970169,0.31135911,60346.0,60339.0,0.3608]
[1724949970773,0.31235911,60346.0,60339.0,0.3608]
[1724949971371,0.31135911,60346.0,60339.0,0.443635]
[1724949971677,0.001,60346.0,60339.0,0.443635]
[1724949972062,0.001,60346.0,60340.0,0.082834]
[1724949972768,0.3618,60346.0,60340.0,0.082834]
[1724949974774,0.3618,60346.0,60341.0,0.082832]
[1724949974964,0.3618,60346.0,60344.0,0.082829]
[1724949975472,0.001,60346.0,60345.0,0.082827]
[1724949975771,0.001,60346.0,60345.0,0.579987]
[1724949975976,0.001,60346.0,60345.0,1.179987]
[1724949976385,0.001,60346.0,60345.0,1.18827261]
[1724949976578,0.00024846,60348.0,60347.0,0.082825]
[1724949978169,0.00124846,60348.0,60347.0,0.082825]
[1724949980175,0.3608,60370.0,60347.0,1.09712]
[1724949980483,0.082814,60355.0,60346.0,0.3608]
[1724949980791,0.082814,60355.0,60347.0,0.06550131]
[1724949981080,0.082818,60352.0,60346.0,0.42630131]
[1724949981285,0.00024846,60357.0,60346.0,0.3608]
[1724949981475,0.3608,60353.0,60346.0,0.3608]
[1724949981674,0.3608,60353.0,60346.0,0.443626]
[1724949981979,0.082823,60349.0,60346.0,0.443626]
[1724949982178,0.3608,60353.0,60346.0,0.443626]
[1724949982677,0.082823,60349.0,60347.0,0.082824]
[1724949983081,0.443617,60353.0,60350.0,0.08282]
[1724949983275,0.443617,60353.0,60351.0,0.082819]
[1724949983476,0.001,60355.0,60346.0,0.3608]
[1724949983780,0.001,60355.0,60354.0,0.082815]
[1724949984583,0.00024846,60357.0,60356.0,0.082812]
[1724949984970,0.3608,60377.0,60360.0,0.082806]
[1724949985175,0.3608,60369.0,60358.0,0.3608]
[1724949985487,0.3608,60369.0,60358.0,0.443609]
[1724949985780,0.3608,60369.0,60368.0,0.082796]
[1724949986876,0.3608,60369.0,60362.0,0.00024846]
[1724949987185,0.082816,60353.0,60352.0,0.06550131]
[1724949989188,0.082813,60356.0,60352.0,0.14831931]
[1724949989583,0.082816,60354.0,60352.0,0.06550131]
[1724949989885,0.082816,60353.0,60352.0,0.06550131]
[1724949990079,0.442812,60357.0,60352.0,0.06550131]
[1724949990284,0.006,60353.0,60352.0,0.14831931]
[1724949990979,0.006,60354.0,60352.0,0.06550131]
[1724949991291,0.006,60354.0,60353.0,0.082816]
[1724949991585,0.08305646,60359.0,60355.0,0.082814]
[1724949991784,0.00024846,60359.0,60352.0,0.06550131]
[1724949991984,0.00024846,60359.0,60358.0,0.08281]
[1724949992289,0.08305646,60359.0,60356.0,0.3608]
[1724949992487,0.082811,60357.0,60356.0,0.3608]
[1724949992690,0.08305646,60359.0,60352.0,0.06550131]
[1724949992986,0.082811,60358.0,60352.0,0.06550131]
[1724949993288,0.00024846,60359.0,60350.0,0.3608]
[1724949993289,0.006,60354.0,60353.0,0.082816]
[1724949993695,0.00024846,60359.0,60358.0,0.08281]
[1724949994286,0.00024846,60359.0,60358.0,0.57985]
[1724949994586,0.08305646,60359.0,60358.0,0.08281]
[1724949994990,0.08281,60358.0,60357.0,0.3608]
[1724949995393,0.08281,60358.0,60355.0,0.082813]
[1724949995394,0.082812,60356.0,60355.0,0.082813]
[1724949996387,0.082812,60356.0,60350.0,0.3608]
[1724949996388,0.01224846,60359.0,60357.0,0.082811]
[1724949996605,0.08281,60358.0,60357.0,0.082811]
[1724949996984,0.01224846,60359.0,60358.0,0.08281]
[1724949996985,0.00024846,60359.0,60358.0,0.08281]
[1724949997191,0.00124846,60359.0,60358.0,0.08281]
[1724949997390,0.082815,60354.0,60353.0,0.06603738]
[1724949997589,0.082819,60351.0,60350.0,0.42683738]
[1724949997795,0.082819,60351.0,60350.0,0.3608]
[1724949998182,0.082816,60354.0,60352.0,0.082817]
[1724949998385,0.082816,60354.0,60353.0,0.082816]
[1724949998598,0.00084,60356.0,60350.0,0.3608]
[1724949998899,0.008,60358.0,60351.0,0.14885638]
[1724949999083,0.00024846,60359.0,60358.0,0.08281]
[1724949999992,0.00024846,60359.0,60350.0,0.42683738]
[1724950000182,0.00024846,60359.0,60355.0,0.082812]
[1724950000183,0.082813,60356.0,60355.0,0.082812]
[1724950000990,0.085813,60356.0,60355.0,0.082812]
[1724950001385,0.00024846,60359.0,60358.0,0.08281]
[1724950003179,0.00024846,60359.0,60337.0,0.135138]
[1724950003180,0.082825,60347.0,60346.0,0.00024846]
[1724950003392,0.52645,60347.0,60346.0,0.00024846]
[1724950003600,1.02357,60347.0,60346.0,0.00024846]
[1724950004093,4.79357,60347.0,60346.0,0.00024846]
[1724950004290,0.082847,60331.0,60330.0,0.06603738]
[1724950004493,0.3608,60336.0,60328.0,0.00082524]
[1724950004793,0.082834,60341.0,60329.0,0.3608]
[1724950004981,0.443626,60346.0,60335.0,0.3608]
[1724950005185,0.08283,60343.0,60339.0,0.082835]
[1724950005391,0.443626,60346.0,60335.0,0.3608]
[1724950005595,0.3608,60346.0,60335.0,0.3608]
[1724950005786,0.001,60336.0,60335.0,0.3608]
[1724950006187,0.3608,60369.0,60338.0,0.082836]
[1724950006390,0.3608,60359.0,60353.0,0.082816]
[1724950006591,0.3608,60359.0,60353.0,0.3608]
[1724950006993,0.3608,60359.0,60345.0,0.06602961]
[1724950006994,0.082816,60354.0,60345.0,0.06602961]
[1724950007192,0.082816,60354.0,60344.0,0.3608]
[1724950008098,0.082816,60354.0,60345.0,0.001]
[1724950008699,0.00024846,60356.0,60344.0,0.3618]
[1724950009195,0.3608,60352.0,60349.0,0.082821]
[1724950009495,0.3608,60352.0,60350.0,0.08282]
[1724950009694,0.3608,60352.0,60351.0,0.082819]
[1724950010900,0.3608,60352.0,60344.0,0.001]
[1724950011101,0.443618,60352.0,60344.0,0.001]
[1724950011302,0.082818,60352.0,60349.0,0.082822]
[1724950011489,0.090818,60352.0,60349.0,0.082822]
[1724950012189,3.77,60351.0,60349.0,0.082822]
[1724950012401,3.77,60351.0,60344.0,0.001]
[1724950012609,0.3608,60349.0,60348.0,0.082822]
[1724950013899,3.77084,60351.0,60350.0,0.082821]
[1724950014200,0.08306046,60356.0,60353.0,0.082815]
[1724950015096,0.08306046,60356.0,60354.0,0.082814]
[1724950015490,0.08306046,60356.0,60355.0,0.082814]
[1724950015697,0.09406046,60356.0,60355.0,0.082814]
[1724950016794,0.37204846,60356.0,60355.0,0.082814]
[1724950017708,0.00024846,60356.0,60355.0,0.082814]
[1724950017998,0.01424846,60356.0,60355.0,0.082814]
[1724950018394,0.00024846,60356.0,60355.0,0.082814]
[1724950018608,0.00924846,60356.0,60355.0,0.165628]
[1724950018795,0.00924846,60356.0,60355.0,0.082814]
[1724950018992,0.37004846,60356.0,60355.0,0.082814]
[1724950019605,0.00924846,60356.0,60355.0,0.082814]
[1724950019998,0.00924846,60356.0,60355.0,0.165628]
[1724950020396,0.00024846,60356.0,60355.0,0.165628]
[1724950020597,0.00924846,60356.0,60355.0,0.165628]
[1724950020906,0.00924846,60356.0,60355.0,0.082814]
[1724950021406,0.00924846,60356.0,60355.0,0.165628]
[1724950023794,0.00924846,60356.0,60355.0,0.082814]
[1724950023995,0.00924846,60356.0,60355.0,0.165628]
[1724950024196,0.00924846,60356.0,60355.0,0.745482]
[1724950024398,0.3508,60373.0,60372.0,0.08279]
[1724950025007,0.433589,60373.0,60372.0,0.08279]
[1724950025596,0.3648,60373.0,60372.0,0.08279]
[1724950025801,0.447589,60373.0,60372.0,0.08279]
[1724950026106,0.082793,60371.0,60367.0,0.3608]
[1724950026319,0.165594,60367.0,60366.0,0.00024846]
[1724950026606,0.082797,60367.0,60366.0,0.00024846]
[1724950026802,0.082797,60367.0,60362.0,0.082803]
[1724950026803,0.497,60366.0,60336.0,0.06605541]
[1724950027007,3.77,60340.0,60335.0,0.082841]
[1724950027206,3.77,60340.0,60332.0,0.3608]
[1724950027409,0.442637,60339.0,60334.0,0.082842]
[1724950027708,0.3598,60339.0,60332.0,0.3608]
[1724950028106,0.082839,60337.0,60332.0,0.3608]
[1724950028414,0.082846,60332.0,60330.0,0.00024846]
[1724950028817,0.081846,60332.0,60330.0,0.00024846]
[1724950029306,0.3598,60339.0,60330.0,0.00024846]
[1724950029705,0.082846,60332.0,60330.0,0.00024846]
[1724950030314,0.079846,60332.0,60330.0,0.00024846]
[1724950031310,0.080846,60332.0,60330.0,0.00124846]
[1724950032606,0.082847,60331.0,60330.0,0.00124846]
[1724950033109,0.082849,60329.0,60318.0,0.3608]
[1724950033311,1.09728,60331.0,60313.0,0.082871]
[1724950033312,0.082865,60318.0,60313.0,0.082871]
[1724950033612,0.082866,60317.0,60312.0,0.4122]
[1724950033816,0.082866,60317.0,60312.0,0.495072]
[1724950034115,0.080858,60323.0,60316.0,0.082867]
[1724950034419,0.080858,60323.0,60319.0,0.3608]
[1724950034607,0.00024868,60325.0,60313.0,0.00224868]
[1724950035107,0.00024868,60325.0,60313.0,0.08511968]
[1724950035108,0.082863,60319.0,60313.0,0.08511968]
[1724950035420,0.082867,60316.0,60313.0,0.00224868]
[1724950036310,0.082867,60316.0,60313.0,0.00024868]
[1724950036516,0.001,60317.0,60313.0,0.00024868]
[1724950036710,0.00024868,60325.0,60324.0,0.082856]
[1724950036915,0.00024868,60325.0,60317.0,0.0506]
[1724950037213,0.00024868,60325.0,60323.0,0.3608]
[1724950037403,0.00024868,60325.0,60319.0,0.082862]
[1724950037404,0.08310468,60325.0,60319.0,0.082862]
[1724950037609,0.08310468,60325.0,60321.0,0.082859]
[1724950037917,0.082856,60324.0,60313.0,0.00024868]
[1724950038102,0.00124868,60325.0,60314.0,0.08287]
[1724950038305,0.082866,60318.0,60314.0,0.08287]
[1724950038517,0.3608,60323.0,60314.0,0.08287]
[1724950039103,0.098,60322.0,60313.0,0.36104868]
[1724950039512,0.082869,60315.0,60313.0,0.36104868]
[1724950039807,0.081869,60315.0,60313.0,0.36104868]
[1724950040209,0.08287,60314.0,60313.0,0.36104868]
[1724950040415,0.082866,60318.0,60313.0,0.36104868]
[1724950040616,0.001,60322.0,60321.0,0.08286]
[1724950041010,0.001,60315.0,60314.0,0.08287]
[1724950042125,0.08310368,60325.0,60314.0,0.4974]
[1724950042421,0.36104868,60325.0,60313.0,0.36104868]
[1724950042624,0.36104868,60325.0,60314.0,0.082869]
[1724950042928,0.082869,60315.0,60314.0,0.082869]
[1724950043116,0.082869,60315.0,60313.0,0.36104868]
[1724950043117,0.08287,60314.0,60313.0,0.00024868]
[1724950043308,0.44367,60314.0,60313.0,0.00024868]
[1724950044431,0.44467,60314.0,60313.0,0.00024868]
[1724950045125,0.44467,60314.0,60313.0,0.08311968]
[1724950045711,0.3618,60314.0,60313.0,0.08311968]
[1724950045925,0.001,60314.0,60313.0,0.08311968]
[1724950046230,0.08387,60314.0,60313.0,0.08311968]
[1724950049220,0.001,60314.0,60313.0,0.08311968]
[1724950052524,0.08387,60314.0,60313.0,0.08311968]
[1724950053720,0.001,60314.0,60313.0,0.08311968]
[1724950054822,0.08387,60314.0,60313.0,0.08311968]
[1724950057933,0.001,60314.0,60313.0,0.08311968]
[1724950058228,0.001,60314.0,60313.0,0.16599068]
[1724950058725,0.001,60314.0,60313.0,0.24886168]
[1724950058931,0.00024868,60325.0,60324.0,0.082856]
[1724950059326,1e-08,60325.0,60324.0,0.23185024]
[1724950059636,1e-08,60325.0,60324.0,0.082856]
[1724950060026,1e-08,60325.0,60324.0,0.165712]
[1724950060223,1e-08,60325.0,60324.0,0.082856]
[1724950060428,1e-08,60325.0,60324.0,0.166712]
[1724950060926,1e-08,60325.0,60324.0,0.249568]
[1724950061333,1e-08,60325.0,60324.0,0.26042073]
[1724950061634,1e-08,60325.0,60324.0,0.34309373]
[1724950062026,1e-08,60325.0,60324.0,0.38646831]
[1724950062226,1e-08,60325.0,60324.0,0.26042073]
[1724950062627,1e-08,60325.0,60324.0,1.35774073]
[1724950062826,1e-08,60325.0,60324.0,1.44033613]
[1724950063034,1e-08,60325.0,60324.0,0.26016013]
[1724950063238,1e-08,60325.0,60324.0,0.083856]
[1724950063635,1e-08,60325.0,60324.0,0.166712]
[1724950063835,1e-08,60325.0,60324.0,0.456712]
[1724950065133,1e-08,60325.0,60324.0,1.554032]
[1724950065334,1e-08,60325.0,60324.0,1.70297335]
[1724950065533,1e-08,60325.0,60324.0,1.636888]
[1724950065938,1e-08,60325.0,60324.0,0.083856]
[1724950066629,1e-08,60325.0,60324.0,0.166712]
[1724950067225,1e-08,60325.0,60324.0,0.083856]
[1724950067441,1e-08,60325.0,60324.0,0.166712]
[1724950067641,1e-08,60325.0,60324.0,0.73007269]
[1724950067839,1e-08,60325.0,60324.0,0.746888]
[1724950068043,1e-08,60325.0,60324.0,0.664032]
[1724950068340,1e-08,60325.0,60324.0,1.346888]
[1724950068937,1e-08,60325.0,60324.0,1.41292869]
[1724950069140,1e-08,60325.0,60324.0,1.346888]
[1724950071740,1e-08,60325.0,60324.0,1.429744]
[1724950071931,1e-08,60325.0,60324.0,1.346888]
[1724950073041,1e-08,60325.0,60324.0,1.429744]
[1724950073236,1e-08,60325.0,60324.0,1.346888]
[1724950073438,1e-08,60325.0,60324.0,1.429744]
[1724950073639,0.0039,60341.0,60340.0,0.082834]
[1724950073847,0.082826,60346.0,60338.0,0.29]
[1724950074046,0.082826,60346.0,60343.0,0.3608]
[1724950074243,0.082826,60346.0,60338.0,0.29]
[1724950074453,0.082822,60349.0,60348.0,0.082822]
[1724950075640,0.096822,60349.0,60348.0,0.082822]
[1724950076841,0.014,60349.0,60348.0,0.082822]
[1724950077345,0.014,60349.0,60348.0,0.165645]
[1724950078248,0.014,60349.0,60348.0,0.082822]
[1724950078448,0.096822,60349.0,60348.0,0.082822]
[1724950078649,0.014,60349.0,60348.0,0.082822]
[1724950078949,0.014,60349.0,60348.0,0.165645]
[1724950080948,0.014,60349.0,60348.0,0.248468]
[1724950081145,0.0479,60354.0,60353.0,0.165632]
[1724950081339,0.0479,60354.0,60353.0,0.526432]
[1724950081747,0.0479,60354.0,60353.0,0.443616]
[1724950082251,0.0479,60354.0,60353.0,0.526432]
[1724950082252,0.0619,60354.0,60353.0,0.526432]
[1724950082641,0.0619,60354.0,60353.0,0.53711456]
[1724950083045,0.014,60354.0,60353.0,0.61993056]
[1724950084540,0.135196,60369.0,60367.0,0.082796]
[1724950084541,0.082796,60368.0,60367.0,0.082796]
[1724950084754,3.852796,60368.0,60367.0,0.082796]
[1724950084956,3.77,60368.0,60367.0,0.082796]
[1724950085140,0.0524,60369.0,60368.0,0.082796]
[1724950085846,3.8224,60369.0,60368.0,0.082796]
[1724950086247,3.905194,60369.0,60368.0,0.082796]
[1724950087147,3.8224,60369.0,60368.0,0.082796]
[1724950087344,3.905194,60369.0,60368.0,0.082796]
[1724950087744,3.905194,60369.0,60368.0,0.083796]
[1724950088448,3.8224,60369.0,60368.0,0.083796]
[1724950089851,3.905194,60369.0,60368.0,0.083796]
[1724950090952,5.084948,60369.0,60368.0,0.001]
[1724950091152,0.165606,60363.0,60362.0,0.00024847]
[1724950091349,0.526406,60363.0,60362.0,0.00024847]
[1724950091544,0.443603,60363.0,60362.0,1e-08]
[1724950091737,4.213603,60363.0,60362.0,1e-08]
[1724950091942,4.213603,60363.0,60362.0,0.08280401]
[1724950091943,4.1308,60363.0,60362.0,0.08280401]
[1724950092243,4.1308,60363.0,60362.0,0.08380401]
[1724950092952,0.3608,60363.0,60362.0,0.08380401]
[1724950093451,0.3608,60363.0,60362.0,0.16660801]
[1724950093840,0.45217226,60363.0,60362.0,0.16660801]
[1724950094050,0.5483639,60363.0,60362.0,0.16660801]
[1724950094356,0.09137226,60363.0,60362.0,0.16660801]
[1724950094655,0.04054804,60363.0,60362.0,0.16660801]
[1724950095241,0.04054804,60363.0,60362.0,0.08380401]
[1724950095453,0.18627948,60363.0,60362.0,0.16660801]
[1724950095752,0.04054804,60363.0,60362.0,0.16660801]
[1724950096148,0.04054804,60363.0,60362.0,0.24941201]
[1724950096350,0.04054804,60363.0,60362.0,0.16660801]
[1724950097852,0.04054804,60363.0,60362.0,0.24941201]
[1724950098849,0.12955566,60368.0,60367.0,0.165594]
[1724950099038,0.14573144,60374.0,60367.0,0.372797]
[1724950099245,0.05106562,60375.0,60374.0,0.082788]
[1724950099449,0.09160828,60375.0,60374.0,0.082788]
[1724950100852,0.00024847,60375.0,60374.0,0.082788]
[1724950101548,0.00024847,60375.0,60374.0,0.083788]
[1724950101851,1.26270047,60375.0,60374.0,0.001]
[1724950102048,0.082803,60363.0,60362.0,1e-08]
[1724950102256,0.443603,60363.0,60362.0,1e-08]
[1724950102457,1.623406,60363.0,60362.0,1e-08]
[1724950102655,5.310603,60363.0,60362.0,1e-08]
[1724950102953,5.393406,60363.0,60362.0,1e-08]
[1724950103248,0.08282,60351.0,60348.0,0.3608]
[1724950103455,0.443623,60349.0,60346.0,0.082826]
[1724950103659,0.082825,60347.0,60346.0,0.082826]
[1724950104255,0.0674,60348.0,60347.0,0.082825]
[1724950104555,0.150223,60348.0,60347.0,0.082825]
[1724950104749,0.149223,60348.0,60347.0,0.082825]
[1724950106045,0.149223,60348.0,60346.0,0.001]
[1724950106046,0.082825,60347.0,60346.0,0.001]
[1724950107155,0.082825,60347.0,60346.0,0.083826]
[1724950107759,0.081825,60347.0,60346.0,0.082826]
[1724950107961,0.002,60348.0,60347.0,0.082825]
[1724950108349,0.00024847,60353.0,60352.0,0.082818]
[1724950109452,0.00324847,60353.0,60352.0,0.083818]
[1724950109960,0.08606447,60353.0,60352.0,0.083818]
[1724950111559,0.00424847,60353.0,60352.0,0.083818]
[1724950115164,0.00424847,60353.0,60352.0,0.082818]
[1724950115653,0.00024847,60353.0,60352.0,0.082818]
[1724950115854,0.00424847,60353.0,60352.0,0.082818]
[1724950116263,0.04480403,60353.0,60352.0,0.082818]
[1724950116459,0.00424847,60353.0,60352.0,0.082818]
[1724950116957,0.36504847,60353.0,60352.0,0.082818]
[1724950117265,0.4056045,60353.0,60352.0,0.082818]
[1724950117560,0.4046045,60353.0,60352.0,0.082818]
[1724950117955,0.4016045,60353.0,60352.0,0.082818]
[1724950118149,0.4046045,60353.0,60352.0,0.082818]
[1724950118350,0.1168426,60353.0,60352.0,0.082818]
[1724950118550,0.04380181,60353.0,60352.0,0.082818]
[1724950118763,0.04380181,60353.0,60352.0,0.083818]
[1724950121664,0.04380278,60353.0,60352.0,0.083818]
[1724950121857,0.12661878,60353.0,60352.0,0.083818]
[1724950122058,0.57023478,60353.0,60352.0,0.001]
[1724950122259,0.57023478,60353.0,60345.0,0.082827]
[1724950122260,0.08283,60346.0,60345.0,0.082827]
[1724950122561,0.48318982,60346.0,60345.0,0.09097024]
[1724950123861,0.44263,60346.0,60345.0,0.09097024]
[1724950124062,0.44163,60346.0,60345.0,0.09097024]
[1724950124278,0.08083,60346.0,60345.0,0.09097024]
[1724950124776,0.08283,60346.0,60345.0,0.09097024]
[1724950126667,0.002,60346.0,60345.0,0.17379724]
[1724950127376,0.002,60346.0,60345.0,0.53459724]
[1724950127869,0.00024847,60353.0,60352.0,0.165636]
[1724950128965,1e-08,60353.0,60352.0,0.29793844]
[1724950129169,1e-08,60353.0,60352.0,0.248454]
[1724950129662,0.0653,60373.0,60368.0,0.082796]
[1724950129869,0.082788,60374.0,60367.0,0.3608]
[1724950130063,3.77,60373.0,60367.0,0.3608]
[1724950130264,3.77,60373.0,60372.0,0.08279]
[1724950131368,4.17134383,60373.0,60372.0,0.08279]
[1724950131870,4.17534383,60373.0,60372.0,0.08379]
[1724950132265,0.3648,60373.0,60372.0,0.08379]
[1724950132465,0.405343,60373.0,60372.0,0.08379]
[1724950132870,0.47848765,60373.0,60372.0,0.08379]
[1724950133072,0.3648,60373.0,60372.0,0.08379]
[1724950133965,0.3648,60373.0,60372.0,0.09457673]
[1724950136281,0.3648,60373.0,60372.0,0.17736673]
[1724950136480,1e-06,60373.0,60372.0,0.62095673]
[1724950136981,0.44359,60373.0,60372.0,0.01178673]
[1724950137272,0.44359,60373.0,60366.0,0.00024847]
[1724950137273,0.165594,60367.0,60366.0,0.00024847]
[1724950137572,0.165594,60367.0,60349.0,0.082821]
[1724950137573,0.082811,60357.0,60349.0,0.0039]
[1724950137770,0.3608,60356.0,60354.0,0.082814]
[1724950139170,0.3608,60356.0,60355.0,0.082814]
[1724950140283,0.3608,60356.0,60350.0,0.08282]
[1724950140466,0.3598,60351.0,60350.0,0.082821]
[1724950141072,0.3588,60351.0,60350.0,0.082821]
[1724950141275,0.082821,60350.0,60349.0,0.00024847]
[1724950141877,0.579941,60350.0,60349.0,0.00024847]
[1724950142285,0.082821,60350.0,60349.0,0.00024847]
[1724950143580,0.3588,60351.0,60350.0,0.082821]
[1724950145074,0.3588,60351.0,60350.0,0.083821]
[1724950145075,0.3628,60351.0,60350.0,0.083821]
[1724950145474,0.3628,60351.0,60343.0,0.29808855]
[1724950145475,0.49712,60350.0,60332.0,0.04954757]
[1724950145675,0.3608,60334.0,60328.0,1.5139]
[1724950145883,0.3608,60334.0,60328.0,1.50916]
[1724950145884,0.443649,60329.0,60328.0,1.50916]
[1724950146082,4.213649,60329.0,60328.0,1.50916]
[1724950146288,1.623778,60329.0,60328.0,1.50916]
[1724950146675,5.393778,60329.0,60328.0,1.50916]
[1724950147076,5.392778,60329.0,60328.0,1.50916]
[1724950147282,5.48649061,60329.0,60328.0,1.15100053]
[1724950147890,5.48649061,60329.0,60328.0,1.06796153]
[1724950148185,5.48849061,60329.0,60328.0,1.06796153]
[1724950148879,5.48849061,60329.0,60328.0,0.97477453]
[1724950150091,5.48849061,60329.0,60328.0,0.87307453]
[1724950150287,5.48849061,60329.0,60328.0,0.79757453]
[1724950151896,5.49049061,60329.0,60328.0,0.79757453]
[1724950156085,5.49049061,60329.0,60328.0,0.71096753]
[1724950156391,5.49049061,60329.0,60328.0,0.62318014]
[1724950156585,1.72049061,60329.0,60328.0,0.62318014]
[1724950158186,1.72049061,60329.0,60328.0,0.38188687]
[1724950158392,1.72049061,60329.0,60322.0,0.00024847]
[1724950158393,0.248574,60323.0,60322.0,0.00024847]
[1724950158589,1.569374,60323.0,60322.0,0.00024847]
[1724950158799,5.836694,60323.0,60322.0,0.00024847]
[1724950159494,2.066694,60323.0,60322.0,0.00024847]
[1724950159896,2.066694,60323.0,60322.0,0.00324847]
[1724950161998,5.836694,60323.0,60322.0,0.00324847]
[1724950162198,5.153836,60323.0,60322.0,0.00324847]
[1724950162397,5.753836,60323.0,60322.0,0.00324847]
[1724950165096,5.153836,60323.0,60322.0,0.00324847]
[1724950165299,5.753836,60323.0,60322.0,0.00324847]
[1724950165495,5.153836,60323.0,60322.0,0.00324847]
[1724950165695,5.753836,60323.0,60322.0,0.00324847]
[1724950165892,5.153836,60323.0,60322.0,0.00324847]
[1724950166310,5.753836,60323.0,60322.0,0.00324847]
[1724950167105,0.165756,60308.0,60307.0,0.0645]
[1724950167310,0.165762,60306.0,60301.0,0.0616]
[1724950167494,0.165762,60306.0,60301.0,0.1256]
[1724950168402,0.082888,60301.0,60300.0,0.1]
[1724950168594,0.443688,60301.0,60300.0,0.1]
[1724950168905,4.213688,60301.0,60300.0,0.1]
[1724950169201,4.30775905,60301.0,60300.0,0.1]
[1724950169614,4.30475905,60301.0,60300.0,0.1]
[1724950169797,4.22187105,60301.0,60300.0,0.1]
[1724950170005,4.30475905,60301.0,60300.0,0.1]
[1724950170201,4.22287105,60301.0,60300.0,0.109]